[Event "*** Titled Tuesday Blitz"]
[Site "Chess.com"]
[Date "2021.04.20"]
[Round "7"]
[White "chessbia"]
[Black "allejam"]
[Result "1-0"]
[WhiteElo "2316"]
[BlackElo "2169"]
[TimeControl "180+1"]
[EndTime "11:17:19 PDT"]
[Termination "chessbia won by checkmate"]

1. d4 {[%clk 0:03:00.9]} 1... d5 {[%clk 0:02:54.3]} 2. c4 {[%clk 0:03:00.5]}
2... e6 {[%clk 0:02:53.1]} 3. Nf3 {[%clk 0:03:00]} 3... Nf6 {[%clk 0:02:53]} 4.
g3 {[%clk 0:03:00.2]} 4... Be7 {[%clk 0:02:53]} 5. Bg2 {[%clk 0:03:00.1]} 5...
O-O {[%clk 0:02:53.3]} 6. O-O {[%clk 0:03:00.3]} 6... b6 {[%clk 0:02:53.5]} 7.
cxd5 {[%clk 0:02:57.9]} 7... exd5 {[%clk 0:02:53]} 8. Nc3 {[%clk 0:02:56.9]}
8... Bf5 {[%clk 0:02:52.6]} 9. Bf4 {[%clk 0:02:55.3]} 9... Nbd7 {[%clk
0:02:52.5]} 10. Rc1 {[%clk 0:02:50]} 10... c5 {[%clk 0:02:52.5]} 11. dxc5 {[%clk
0:02:48.7]} 11... Nxc5 {[%clk 0:02:51]} 12. Nd4 {[%clk 0:02:42.1]} 12... Be6
{[%clk 0:02:32.7]} 13. Nc6 {[%clk 0:02:17]} 13... Qd7 {[%clk 0:02:27.8]} 14.
Nxe7+ {[%clk 0:02:16.6]} 14... Qxe7 {[%clk 0:02:27.3]} 15. Nb5 {[%clk
0:02:14.5]} 15... Rad8 {[%clk 0:02:13.3]} 16. Nd4 {[%clk 0:02:07.9]} 16... Rc8
{[%clk 0:01:56]} 17. a3 {[%clk 0:01:40.3]} 17... a5 {[%clk 0:01:43.2]} 18. b4
{[%clk 0:01:33.3]} 18... axb4 {[%clk 0:01:41]} 19. axb4 {[%clk 0:01:34.2]} 19...
Nce4 {[%clk 0:01:38.8]} 20. b5 {[%clk 0:01:23.7]} 20... Rxc1 {[%clk 0:01:10.6]}
21. Qxc1 {[%clk 0:01:24.6]} 21... Rc8 {[%clk 0:01:06.1]} 22. Qb2 {[%clk
0:01:19.6]} 22... Bd7 {[%clk 0:00:53.6]} 23. Rc1 {[%clk 0:00:48.2]} 23... g5
{[%clk 0:00:51.3]} 24. Rxc8+ {[%clk 0:00:42.1]} 24... Bxc8 {[%clk 0:00:52.2]}
25. Nc6 {[%clk 0:00:33]} 25... Qc5 {[%clk 0:00:29.8]} 26. Be3 {[%clk 0:00:32.8]}
26... Qf8 {[%clk 0:00:30.2]} 27. Bxb6 {[%clk 0:00:31]} 27... Bd7 {[%clk
0:00:24.7]} 28. Bd4 {[%clk 0:00:29.2]} 28... Bxc6 {[%clk 0:00:23.2]} 29. bxc6
{[%clk 0:00:30.1]} 29... Qd6 {[%clk 0:00:23.4]} 30. Qc2 {[%clk 0:00:22.7]} 30...
Qc7 {[%clk 0:00:23.6]} 31. Be3 {[%clk 0:00:18.7]} 31... h6 {[%clk 0:00:21.8]}
32. h4 {[%clk 0:00:18.4]} 32... Ng4 {[%clk 0:00:21.7]} 33. Bxe4 {[%clk
0:00:16.2]} 33... Nxe3 {[%clk 0:00:21.7]} 34. fxe3 {[%clk 0:00:15.4]} 34... dxe4
{[%clk 0:00:22]} 35. Qxe4 {[%clk 0:00:15.4]} 35... Qxg3+ {[%clk 0:00:22.2]} 36.
Kf1 {[%clk 0:00:15.5]} 36... gxh4 {[%clk 0:00:19.5]} 37. Qe8+ {[%clk 0:00:13.8]}
37... Kg7 {[%clk 0:00:19.8]} 38. Qd7 {[%clk 0:00:14]} 38... h3 {[%clk
0:00:19.7]} 39. Qd4+ {[%clk 0:00:11.4]} 39... Kh7 {[%clk 0:00:16.2]} 40. Qe4+
{[%clk 0:00:11.4]} 40... Kg7 {[%clk 0:00:16.6]} 41. Qd4+ {[%clk 0:00:11.7]}
41... f6 {[%clk 0:00:16.8]} 42. Qd7+ {[%clk 0:00:11.2]} 42... Kg6 {[%clk
0:00:16.7]} 43. Qe8+ {[%clk 0:00:11.3]} 43... Kf5 {[%clk 0:00:15.4]} 44. e4+
{[%clk 0:00:09.5]} 44... Kf4 {[%clk 0:00:13.4]} 45. Qb8+ {[%clk 0:00:09.4]}
45... Kg4 {[%clk 0:00:14.3]} 46. Qxg3+ {[%clk 0:00:09.6]} 46... Kxg3 {[%clk
0:00:14.7]} 47. Kg1 {[%clk 0:00:10.5]} 47... h2+ {[%clk 0:00:13.8]} 48. Kh1
{[%clk 0:00:10]} 48... f5 {[%clk 0:00:14.5]} 49. exf5 {[%clk 0:00:10.3]} 49...
h5 {[%clk 0:00:11.7]} 50. c7 {[%clk 0:00:11.2]} 50... h4 {[%clk 0:00:12.6]} 51.
c8=Q {[%clk 0:00:12.1]} 51... Kh3 {[%clk 0:00:13.5]} 52. f6+ {[%clk 0:00:12.1]}
52... Kg3 {[%clk 0:00:13.2]} 53. f7 {[%clk 0:00:13]} 53... h3 {[%clk 0:00:14.1]}
54. Qg8+ {[%clk 0:00:13]} 54... Kh4 {[%clk 0:00:15]} 55. f8=Q {[%clk 0:00:13.6]}
55... Kh5 {[%clk 0:00:15.1]} 56. Qf5+ {[%clk 0:00:13.3]} 56... Kh4 {[%clk
0:00:16]} 57. Qfg4# {[%clk 0:00:13.2]} 1-0

[Event "*** Titled Tuesday Blitz"]
[Site "Chess.com"]
[Date "2021.04.20"]
[Round "7"]
[White "maxip32"]
[Black "dpopadic"]
[Result "1-0"]
[WhiteElo "2525"]
[BlackElo "2371"]
[TimeControl "180+1"]
[EndTime "11:17:20 PDT"]
[Termination "maxip32 won by resignation"]

1. e4 {[%clk 0:03:00.9]} 1... c5 {[%clk 0:02:59.4]} 2. Nf3 {[%clk 0:03:00.4]}
2... Nc6 {[%clk 0:02:58.9]} 3. d4 {[%clk 0:02:59.6]} 3... cxd4 {[%clk
0:02:58.9]} 4. Nxd4 {[%clk 0:03:00.5]} 4... Nf6 {[%clk 0:02:58.7]} 5. Nc3 {[%clk
0:03:00.3]} 5... e5 {[%clk 0:02:58.2]} 6. Ndb5 {[%clk 0:03:00.1]} 6... d6 {[%clk
0:02:58.3]} 7. Nd5 {[%clk 0:03:00.1]} 7... Nxd5 {[%clk 0:02:57.6]} 8. exd5
{[%clk 0:03:01]} 8... Nb8 {[%clk 0:02:57.7]} 9. a4 {[%clk 0:02:59]} 9... Be7
{[%clk 0:02:57.4]} 10. Be2 {[%clk 0:02:57.3]} 10... O-O {[%clk 0:02:57.2]} 11.
Bd2 {[%clk 0:02:57.4]} 11... Nd7 {[%clk 0:02:54.3]} 12. a5 {[%clk 0:02:55.9]}
12... f5 {[%clk 0:02:47.9]} 13. O-O {[%clk 0:02:54.3]} 13... Kh8 {[%clk
0:02:47]} 14. c4 {[%clk 0:02:52.1]} 14... Nc5 {[%clk 0:02:44.3]} 15. f3 {[%clk
0:02:46.7]} 15... a6 {[%clk 0:02:36.6]} 16. Nc3 {[%clk 0:02:46.2]} 16... Bg5
{[%clk 0:02:33.6]} 17. Ra3 {[%clk 0:02:33.1]} 17... e4 {[%clk 0:02:19.3]} 18. b4
{[%clk 0:02:32.4]} 18... Nd3 {[%clk 0:02:19]} 19. Bxd3 {[%clk 0:02:27.8]} 19...
exd3 {[%clk 0:02:19.1]} 20. Bxg5 {[%clk 0:02:28.7]} 20... Qxg5 {[%clk
0:02:18.4]} 21. Qxd3 {[%clk 0:02:29.6]} 21... Bd7 {[%clk 0:02:18]} 22. f4 {[%clk
0:02:21]} 22... Qf6 {[%clk 0:02:16.3]} 23. Re1 {[%clk 0:02:15.7]} 23... Rae8
{[%clk 0:02:15.5]} 24. Rxe8 {[%clk 0:02:14.9]} 24... Rxe8 {[%clk 0:02:15.2]} 25.
Qd2 {[%clk 0:02:00.7]} 25... h6 {[%clk 0:02:00.7]} 26. Ra1 {[%clk 0:01:59.9]}
26... Rc8 {[%clk 0:01:56.9]} 27. Qd3 {[%clk 0:01:53.7]} 27... Bb5 {[%clk
0:01:52.6]} 28. cxb5 {[%clk 0:01:31.9]} 28... Rxc3 {[%clk 0:01:52.3]} 29. Qf1
{[%clk 0:01:30.3]} 29... Qd4+ {[%clk 0:01:39.7]} 30. Kh1 {[%clk 0:01:29.8]}
30... Qxb4 {[%clk 0:01:39]} 31. bxa6 {[%clk 0:01:29.3]} 31... bxa6 {[%clk
0:01:38.3]} 32. Qxa6 {[%clk 0:01:20.1]} 32... Qxf4 {[%clk 0:01:37.2]} 33. Qf1
{[%clk 0:00:26.9]} 33... Qxf1+ {[%clk 0:01:31.6]} 34. Rxf1 {[%clk 0:00:27.8]}
34... Ra3 {[%clk 0:01:31]} 35. h4 {[%clk 0:00:28.3]} 35... g6 {[%clk 0:01:27.1]}
36. h5 {[%clk 0:00:27.3]} 36... Kg7 {[%clk 0:01:26]} 37. hxg6 {[%clk 0:00:27.2]}
37... Kxg6 {[%clk 0:01:21.1]} 38. Re1 {[%clk 0:00:26.7]} 38... Rxa5 {[%clk
0:01:21]} 39. Re6+ {[%clk 0:00:26.4]} 39... Kg5 {[%clk 0:01:21.6]} 40. Rxd6
{[%clk 0:00:27.3]} 40... h5 {[%clk 0:01:17.7]} 41. Kh2 {[%clk 0:00:20.5]} 41...
Ra3 {[%clk 0:01:16.9]} 42. g3 {[%clk 0:00:18.2]} 42... Rd3 {[%clk 0:01:14.5]}
43. Rd8 {[%clk 0:00:17.6]} 43... Rd2+ {[%clk 0:01:03.8]} 44. Kh3 {[%clk
0:00:17.4]} 44... Rd1 {[%clk 0:01:01.5]} 45. d6 {[%clk 0:00:17.2]} 45... Kf6
{[%clk 0:00:57]} 46. d7 {[%clk 0:00:06.6]} 46... Ke7 {[%clk 0:00:56.5]} 47. Re8+
{[%clk 0:00:06.1]} 47... Kxd7 {[%clk 0:00:55.5]} 48. Re5 {[%clk 0:00:06.8]}
48... Rf1 {[%clk 0:00:51.6]} 49. Kg2 {[%clk 0:00:06.8]} 49... Kd6 {[%clk
0:00:40.3]} 50. Ra5 {[%clk 0:00:05.1]} 50... Rd1 {[%clk 0:00:39]} 51. Rxf5
{[%clk 0:00:05]} 51... Rd5 {[%clk 0:00:38.9]} 52. Rxd5+ {[%clk 0:00:04]} 52...
Kxd5 {[%clk 0:00:39.1]} 53. Kh3 {[%clk 0:00:04.9]} 53... Ke5 {[%clk 0:00:34.6]}
54. Kh4 {[%clk 0:00:05.8]} 54... Kf6 {[%clk 0:00:31.6]} 55. Kxh5 {[%clk
0:00:06.1]} 55... Kg7 {[%clk 0:00:31.6]} 56. Kg5 {[%clk 0:00:06.5]} 56... Kh7
{[%clk 0:00:31.8]} 57. Kf6 {[%clk 0:00:06.7]} 57... Kg8 {[%clk 0:00:31.5]} 58.
Kg6 {[%clk 0:00:07]} 58... Kh8 {[%clk 0:00:30.8]} 59. g4 {[%clk 0:00:07.3]}
59... Kg8 {[%clk 0:00:30.8]} 60. g5 {[%clk 0:00:07.7]} 60... Kh8 {[%clk
0:00:30.5]} 61. Kf7 {[%clk 0:00:07.3]} 61... Kh7 {[%clk 0:00:30.7]} 62. g6+
{[%clk 0:00:08.1]} 1-0

[Event "*** Titled Tuesday Blitz"]
[Site "Chess.com"]
[Date "2021.04.20"]
[Round "7"]
[White "SchmakAttack"]
[Black "Kobalia"]
[Result "1-0"]
[WhiteElo "2635"]
[BlackElo "2771"]
[TimeControl "180+1"]
[EndTime "11:17:23 PDT"]
[Termination "SchmakAttack won on time"]

1. Nf3 {[%clk 0:03:00.6]} 1... Nf6 {[%clk 0:02:59.2]} 2. g3 {[%clk 0:03:00.7]}
2... g6 {[%clk 0:02:59.2]} 3. b3 {[%clk 0:02:59.6]} 3... Bg7 {[%clk 0:02:57.4]}
4. Bb2 {[%clk 0:03:00.2]} 4... c5 {[%clk 0:02:57.5]} 5. Bg2 {[%clk 0:03:00.4]}
5... Nc6 {[%clk 0:02:57.7]} 6. O-O {[%clk 0:03:00.5]} 6... O-O {[%clk
0:02:57.8]} 7. c4 {[%clk 0:02:57.5]} 7... d6 {[%clk 0:02:57.4]} 8. d4 {[%clk
0:02:54.1]} 8... Ne4 {[%clk 0:02:56.9]} 9. Nbd2 {[%clk 0:02:52.4]} 9... Bf5
{[%clk 0:02:53.6]} 10. e3 {[%clk 0:02:42.2]} 10... Qb6 {[%clk 0:02:44.7]} 11.
Nxe4 {[%clk 0:02:31.7]} 11... Bxe4 {[%clk 0:02:44.4]} 12. dxc5 {[%clk
0:02:32.1]} 12... dxc5 {[%clk 0:02:39.9]} 13. Bxg7 {[%clk 0:02:32.5]} 13... Kxg7
{[%clk 0:02:40.8]} 14. Qd2 {[%clk 0:02:31]} 14... Rfd8 {[%clk 0:02:14.7]} 15.
Qb2+ {[%clk 0:02:25.8]} 15... Kg8 {[%clk 0:02:13.8]} 16. Rfd1 {[%clk 0:02:25.2]}
16... a5 {[%clk 0:02:09.8]} 17. Ne5 {[%clk 0:02:09.9]} 17... Bxg2 {[%clk
0:02:08.3]} 18. Kxg2 {[%clk 0:02:10.8]} 18... f6 {[%clk 0:02:05.7]} 19. Nd7
{[%clk 0:01:55.1]} 19... Qc7 {[%clk 0:01:53.1]} 20. Nxc5 {[%clk 0:01:54.1]}
20... Ne5 {[%clk 0:01:53.3]} 21. Ne4 {[%clk 0:01:27.2]} 21... Qc6 {[%clk
0:01:51.5]} 22. f3 {[%clk 0:01:27.5]} 22... Nxf3 {[%clk 0:01:51.3]} 23. Kxf3
{[%clk 0:01:25]} 23... f5 {[%clk 0:01:51.2]} 24. Qe5 {[%clk 0:01:15.8]} 24...
fxe4+ {[%clk 0:01:50.9]} 25. Ke2 {[%clk 0:01:16.3]} 25... Rd3 {[%clk 0:01:44.3]}
26. Rf1 {[%clk 0:00:22.7]} 26... Rad8 {[%clk 0:01:39.6]} 27. Qxe7 {[%clk
0:00:18.9]} 27... Rd2+ {[%clk 0:01:13.2]} 28. Ke1 {[%clk 0:00:19.1]} 28... R2d7
{[%clk 0:01:13.7]} 29. Qe5 {[%clk 0:00:14]} 29... Qb6 {[%clk 0:01:08.9]} 30.
Qxe4 {[%clk 0:00:04.5]} 30... Qb4+ {[%clk 0:00:59]} 31. Kf2 {[%clk 0:00:04.8]}
31... Re7 {[%clk 0:00:59.2]} 32. Qg4 {[%clk 0:00:03]} 32... Qd2+ {[%clk
0:00:44.4]} 33. Kg1 {[%clk 0:00:03.4]} 33... Qxe3+ {[%clk 0:00:44.6]} 34. Rf2
{[%clk 0:00:04]} 34... Re4 {[%clk 0:00:34.4]} 35. Qh3 {[%clk 0:00:02]} 35...
Red4 {[%clk 0:00:30.4]} 36. Rf1 {[%clk 0:00:02.4]} 36... Rd1 {[%clk 0:00:30.1]}
37. Kh1 {[%clk 0:00:01.9]} 37... Kg7 {[%clk 0:00:04.6]} 38. Qg2 {[%clk
0:00:01.6]} 38... R1d7 {[%clk 0:00:02.4]} 39. Rf3 {[%clk 0:00:01.3]} 39... Qe6
{[%clk 0:00:01.7]} 40. Qf2 {[%clk 0:00:01.7]} 40... Re7 {[%clk 0:00:01.4]} 41.
Qb2+ {[%clk 0:00:01.9]} 1-0

[Event "*** Titled Tuesday Blitz"]
[Site "Chess.com"]
[Date "2021.04.20"]
[Round "7"]
[White "BL4D3RUNN3R"]
[Black "winniethepooh04"]
[Result "0-1"]
[WhiteElo "2101"]
[BlackElo "2256"]
[TimeControl "180+1"]
[EndTime "11:17:23 PDT"]
[Termination "winniethepooh04 won by checkmate"]

1. Nf3 {[%clk 0:03:00.9]} 1... Nf6 {[%clk 0:02:57.7]} 2. c4 {[%clk 0:03:00]}
2... g6 {[%clk 0:02:55.8]} 3. b4 {[%clk 0:02:59.8]} 3... Bg7 {[%clk 0:02:56.2]}
4. Bb2 {[%clk 0:02:59.7]} 4... O-O {[%clk 0:02:56.2]} 5. g3 {[%clk 0:02:59.6]}
5... a5 {[%clk 0:02:56.1]} 6. b5 {[%clk 0:02:58.4]} 6... a4 {[%clk 0:02:55.3]}
7. Na3 {[%clk 0:02:54.8]} 7... c6 {[%clk 0:02:54.4]} 8. Bg2 {[%clk 0:02:53]}
8... d5 {[%clk 0:02:50]} 9. O-O {[%clk 0:02:51.4]} 9... dxc4 {[%clk 0:02:48.3]}
10. Qc2 {[%clk 0:02:40.6]} 10... Bf5 {[%clk 0:02:41.4]} 11. Qxc4 {[%clk
0:02:37.1]} 11... cxb5 {[%clk 0:02:41]} 12. Nxb5 {[%clk 0:02:21.6]} 12... Nc6
{[%clk 0:02:34.1]} 13. d3 {[%clk 0:02:12.9]} 13... Be6 {[%clk 0:02:20]} 14. Qc1
{[%clk 0:01:52.4]} 14... Rc8 {[%clk 0:02:15.9]} 15. Qd2 {[%clk 0:01:46.1]} 15...
Bg4 {[%clk 0:01:46.5]} 16. h3 {[%clk 0:01:41.7]} 16... Bxf3 {[%clk 0:01:45.3]}
17. Bxf3 {[%clk 0:01:39.9]} 17... e5 {[%clk 0:01:35.1]} 18. Bg2 {[%clk 0:01:30]}
18... e4 {[%clk 0:01:28.3]} 19. Rfd1 {[%clk 0:01:25.7]} 19... Qb6 {[%clk
0:01:13]} 20. Nd6 {[%clk 0:01:18.3]} 20... Rcd8 {[%clk 0:00:55.3]} 21. Nc4
{[%clk 0:01:12.9]} 21... Qc5 {[%clk 0:00:51.8]} 22. Ba3 {[%clk 0:01:11.7]} 22...
Qxc4 {[%clk 0:00:33.4]} 23. dxc4 {[%clk 0:01:10.5]} 23... Rxd2 {[%clk
0:00:32.7]} 24. Rxd2 {[%clk 0:01:09.7]} 24... Re8 {[%clk 0:00:32.5]} 25. e3
{[%clk 0:01:06]} 25... Ne5 {[%clk 0:00:30.7]} 26. Rc1 {[%clk 0:01:02.2]} 26...
Nd3 {[%clk 0:00:30.7]} 27. Rcc2 {[%clk 0:00:59.5]} 27... Ne1 {[%clk 0:00:28.5]}
28. Rb2 {[%clk 0:00:55.8]} 28... Nf3+ {[%clk 0:00:28.7]} 29. Bxf3 {[%clk
0:00:54.5]} 29... exf3 {[%clk 0:00:29.6]} 30. Rxb7 {[%clk 0:00:52.1]} 30... Ne4
{[%clk 0:00:27.9]} 31. Rd1 {[%clk 0:00:48.4]} 31... Nc3 {[%clk 0:00:23.8]} 32.
Re1 {[%clk 0:00:44.6]} 32... Ne2+ {[%clk 0:00:20.3]} 33. Kf1 {[%clk 0:00:43.7]}
33... Rc8 {[%clk 0:00:18.1]} 34. c5 {[%clk 0:00:42.7]} 34... Bc3 {[%clk
0:00:16.5]} 35. Rd1 {[%clk 0:00:38.7]} 35... Be5 {[%clk 0:00:08.9]} 36. Rbd7
{[%clk 0:00:36.5]} 36... Kg7 {[%clk 0:00:05.7]} 37. R7d5 {[%clk 0:00:34.5]}
37... Bf6 {[%clk 0:00:04.7]} 38. g4 {[%clk 0:00:31]} 38... Nc3 {[%clk 0:00:05]}
39. e4 {[%clk 0:00:22.6]} 39... Nxd1 {[%clk 0:00:04.8]} 40. Rxd1 {[%clk
0:00:21.4]} 40... Re8 {[%clk 0:00:05.2]} 41. c6 {[%clk 0:00:19.1]} 41... Rxe4
{[%clk 0:00:04.9]} 42. Rc1 {[%clk 0:00:14.9]} 42... Re8 {[%clk 0:00:05.3]} 43.
c7 {[%clk 0:00:13.2]} 43... Rc8 {[%clk 0:00:05.7]} 44. Bd6 {[%clk 0:00:12.3]}
44... Bd8 {[%clk 0:00:03.8]} 45. Rc4 {[%clk 0:00:08.1]} 45... Kf6 {[%clk
0:00:02.6]} 46. cxd8=Q+ {[%clk 0:00:06.4]} 46... Rxd8 {[%clk 0:00:03]} 47. Bf4
{[%clk 0:00:04.2]} 47... Rd1# {[%clk 0:00:02.9]} 0-1

[Event "*** Titled Tuesday Blitz"]
[Site "Chess.com"]
[Date "2021.04.20"]
[Round "7"]
[White "seorobert1971"]
[Black "BigAl"]
[Result "1-0"]
[WhiteElo "2723"]
[BlackElo "2586"]
[TimeControl "180+1"]
[EndTime "11:17:27 PDT"]
[Termination "seorobert1971 won by resignation"]

1. e4 {[%clk 0:03:00.9]} 1... c6 {[%clk 0:03:00]} 2. Nf3 {[%clk 0:03:01]} 2...
d5 {[%clk 0:03:00.2]} 3. Nc3 {[%clk 0:03:01.7]} 3... dxe4 {[%clk 0:02:59.6]} 4.
Nxe4 {[%clk 0:03:02.6]} 4... Nf6 {[%clk 0:03:00.2]} 5. Qe2 {[%clk 0:03:02.8]}
5... Be6 {[%clk 0:03:00.4]} 6. Neg5 {[%clk 0:03:00.5]} 6... Bd5 {[%clk
0:03:00.6]} 7. c4 {[%clk 0:02:55.7]} 7... h6 {[%clk 0:03:01.1]} 8. cxd5 {[%clk
0:02:52]} 8... hxg5 {[%clk 0:03:01]} 9. dxc6 {[%clk 0:02:51.9]} 9... Nxc6 {[%clk
0:03:01.1]} 10. Qb5 {[%clk 0:02:43.7]} 10... Qd7 {[%clk 0:02:35.6]} 11. Nxg5
{[%clk 0:02:35.1]} 11... Rh5 {[%clk 0:02:29.1]} 12. h4 {[%clk 0:02:28.8]} 12...
a6 {[%clk 0:02:26.6]} 13. Qd3 {[%clk 0:02:27.3]} 13... Nb4 {[%clk 0:02:10.1]}
14. Qxd7+ {[%clk 0:02:25.9]} 14... Nxd7 {[%clk 0:02:10.4]} 15. Kd1 {[%clk
0:02:24.2]} 15... Rc8 {[%clk 0:02:01.6]} 16. a3 {[%clk 0:02:12.7]} 16... Nc2
{[%clk 0:02:01.6]} 17. Rb1 {[%clk 0:02:12.8]} 17... Ne5 {[%clk 0:01:56]} 18. Be2
{[%clk 0:02:08.7]} 18... Rh6 {[%clk 0:01:55]} 19. f4 {[%clk 0:02:01.3]} 19...
Ng6 {[%clk 0:01:36.8]} 20. g3 {[%clk 0:02:00.7]} 20... e5 {[%clk 0:01:37]} 21.
Bd3 {[%clk 0:01:46.2]} 21... Nd4 {[%clk 0:01:30.9]} 22. f5 {[%clk 0:01:39.4]}
22... Ne7 {[%clk 0:01:29.3]} 23. g4 {[%clk 0:01:39.1]} 23... Rhc6 {[%clk
0:01:22.2]} 24. b4 {[%clk 0:01:33.9]} 24... Nb3 {[%clk 0:01:10.3]} 25. Bb2
{[%clk 0:01:18.6]} 25... Rd8 {[%clk 0:01:09.4]} 26. Ke2 {[%clk 0:01:15.1]} 26...
Rcd6 {[%clk 0:00:52]} 27. Bc4 {[%clk 0:01:14.2]} 27... Rxd2+ {[%clk 0:00:52.1]}
28. Kf3 {[%clk 0:01:12.1]} 28... f6 {[%clk 0:00:37.9]} 29. Ne6 {[%clk
0:01:04.6]} 29... Rxb2 {[%clk 0:00:36.4]} 30. Rxb2 {[%clk 0:00:51]} 30... Nd2+
{[%clk 0:00:34]} 31. Rxd2 {[%clk 0:00:36]} 31... Rxd2 {[%clk 0:00:34.1]} 32. Rc1
{[%clk 0:00:35]} 32... Nc6 {[%clk 0:00:33.6]} 33. b5 {[%clk 0:00:32.3]} 33...
Bxa3 {[%clk 0:00:29.7]} 34. bxc6 {[%clk 0:00:13.2]} 34... Bb2 {[%clk 0:00:21.2]}
35. cxb7 {[%clk 0:00:11]} 35... e4+ {[%clk 0:00:19.4]} 36. Kxe4 {[%clk
0:00:10.7]} 36... Be5 {[%clk 0:00:19.5]} 37. Rb1 {[%clk 0:00:10.8]} 37... Rc2
{[%clk 0:00:17.2]} 38. b8=Q+ {[%clk 0:00:09.8]} 38... Bxb8 {[%clk 0:00:18.1]}
39. Rxb8+ {[%clk 0:00:10.2]} 39... Kd7 {[%clk 0:00:19]} 40. Bd3 {[%clk
0:00:10.5]} 40... Rg2 {[%clk 0:00:18.4]} 41. Rb7+ {[%clk 0:00:10.4]} 41... Kd6
{[%clk 0:00:18.4]} 42. Rxg7 {[%clk 0:00:11.3]} 42... Rg3 {[%clk 0:00:18.3]} 43.
g5 {[%clk 0:00:11.3]} 43... Rg4+ {[%clk 0:00:17.3]} 44. Nf4 {[%clk 0:00:11.1]}
44... Rxh4 {[%clk 0:00:16.1]} 45. gxf6 {[%clk 0:00:11]} 45... Rh8 {[%clk
0:00:15.6]} 46. f7 {[%clk 0:00:11]} 46... Ke7 {[%clk 0:00:16.5]} 47. Ng6+ {[%clk
0:00:10.9]} 47... Kf6 {[%clk 0:00:17]} 48. Nxh8 {[%clk 0:00:11.1]} 48... Kxg7
{[%clk 0:00:17.9]} 49. Ng6 {[%clk 0:00:11]} 49... Kxf7 {[%clk 0:00:18]} 50. Bxa6
{[%clk 0:00:11.1]} 50... Kf6 {[%clk 0:00:18.1]} 51. Bc4 {[%clk 0:00:12]} 51...
Kg5 {[%clk 0:00:17.4]} 52. Ke5 {[%clk 0:00:12.4]} 52... Kh6 {[%clk 0:00:18.3]}
53. f6 {[%clk 0:00:12.4]} 53... Kxg6 {[%clk 0:00:16.6]} 54. f7 {[%clk 0:00:12]}
54... Kg7 {[%clk 0:00:16.1]} 55. Kf5 {[%clk 0:00:12.4]} 55... Kh7 {[%clk
0:00:14.9]} 56. Kf6 {[%clk 0:00:11.1]} 56... Kh6 {[%clk 0:00:14.8]} 57. f8=Q+
{[%clk 0:00:10.9]} 57... Kh5 {[%clk 0:00:15.7]} 58. Qg8 {[%clk 0:00:10.2]} 1-0

[Event "*** Titled Tuesday Blitz"]
[Site "Chess.com"]
[Date "2021.04.20"]
[Round "7"]
[White "Gulkov_Igor"]
[Black "Eloist"]
[Result "1-0"]
[WhiteElo "2528"]
[BlackElo "2373"]
[TimeControl "180+1"]
[EndTime "11:17:27 PDT"]
[Termination "Gulkov_Igor won on time"]

1. Nf3 {[%clk 0:03:00.9]} 1... Nf6 {[%clk 0:02:59.4]} 2. c4 {[%clk 0:03:00.4]}
2... e6 {[%clk 0:02:59.1]} 3. Nc3 {[%clk 0:03:00.6]} 3... b6 {[%clk 0:02:59.1]}
4. g3 {[%clk 0:03:00.2]} 4... Bb7 {[%clk 0:02:59.3]} 5. Bg2 {[%clk 0:03:00.5]}
5... Be7 {[%clk 0:02:59.7]} 6. d4 {[%clk 0:03:00.3]} 6... O-O {[%clk 0:02:59.7]}
7. O-O {[%clk 0:02:59.3]} 7... Ne4 {[%clk 0:02:59.5]} 8. Bd2 {[%clk 0:02:59.5]}
8... f5 {[%clk 0:02:58.9]} 9. d5 {[%clk 0:02:58.8]} 9... Bf6 {[%clk 0:02:58.5]}
10. Rc1 {[%clk 0:02:58.9]} 10... Na6 {[%clk 0:02:57.8]} 11. a3 {[%clk
0:02:56.4]} 11... c5 {[%clk 0:02:55.6]} 12. Ne1 {[%clk 0:02:41.1]} 12... exd5
{[%clk 0:02:53.9]} 13. cxd5 {[%clk 0:02:39.7]} 13... Qe7 {[%clk 0:02:50]} 14.
Nxe4 {[%clk 0:02:36.1]} 14... fxe4 {[%clk 0:02:49.3]} 15. Bc3 {[%clk 0:02:36.3]}
15... d6 {[%clk 0:02:43.2]} 16. f3 {[%clk 0:02:20.1]} 16... exf3 {[%clk
0:02:31.8]} 17. exf3 {[%clk 0:02:19.9]} 17... Rae8 {[%clk 0:02:15.2]} 18. f4
{[%clk 0:02:13.9]} 18... Bxc3 {[%clk 0:02:04.9]} 19. Rxc3 {[%clk 0:02:13.2]}
19... Qe2 {[%clk 0:02:04.5]} 20. Nd3 {[%clk 0:01:53.8]} 20... Qxd1 {[%clk
0:01:56]} 21. Rxd1 {[%clk 0:01:53]} 21... Re2 {[%clk 0:01:49.7]} 22. Bf3 {[%clk
0:01:50.9]} 22... Re7 {[%clk 0:01:43.5]} 23. Kf2 {[%clk 0:01:50.3]} 23... Nc7
{[%clk 0:01:40.4]} 24. Ne1 {[%clk 0:01:40.2]} 24... Nb5 {[%clk 0:01:37.9]} 25.
Rcd3 {[%clk 0:01:36.2]} 25... Nd4 {[%clk 0:01:35.6]} 26. Rxd4 {[%clk 0:01:32.8]}
26... cxd4 {[%clk 0:01:34.9]} 27. Rxd4 {[%clk 0:01:33.1]} 27... g5 {[%clk
0:01:29.4]} 28. Nd3 {[%clk 0:01:29.7]} 28... gxf4 {[%clk 0:01:07.9]} 29. Nxf4
{[%clk 0:01:28.9]} 29... Rc8 {[%clk 0:01:07.4]} 30. Rd2 {[%clk 0:01:25.5]} 30...
Rc1 {[%clk 0:00:59.4]} 31. Bg4 {[%clk 0:01:24.4]} 31... Bc8 {[%clk 0:00:57.8]}
32. Be6+ {[%clk 0:01:21.3]} 32... Kg7 {[%clk 0:00:55.8]} 33. h4 {[%clk
0:01:15.2]} 33... Rec7 {[%clk 0:00:49.8]} 34. Ke3 {[%clk 0:01:02.7]} 34... R7c2
{[%clk 0:00:39.7]} 35. Rxc2 {[%clk 0:00:56.2]} 35... Rxc2 {[%clk 0:00:40.6]} 36.
Kd3 {[%clk 0:00:56.6]} 36... Rc1 {[%clk 0:00:37.9]} 37. Kd2 {[%clk 0:00:55.9]}
37... Rc7 {[%clk 0:00:35.6]} 38. g4 {[%clk 0:00:55.5]} 38... Kf6 {[%clk
0:00:34.9]} 39. Ke3 {[%clk 0:00:49.1]} 39... Bxe6 {[%clk 0:00:34.1]} 40. dxe6
{[%clk 0:00:48.1]} 40... Rc2 {[%clk 0:00:25.3]} 41. g5+ {[%clk 0:00:47.4]} 41...
Ke7 {[%clk 0:00:21.3]} 42. h5 {[%clk 0:00:41.7]} 42... Rxb2 {[%clk 0:00:19.7]}
43. g6 {[%clk 0:00:42]} 43... hxg6 {[%clk 0:00:19.6]} 44. hxg6 {[%clk
0:00:42.3]} 44... Rb3+ {[%clk 0:00:17.9]} 45. Ke4 {[%clk 0:00:42.5]} 45... Rxa3
{[%clk 0:00:12.7]} 46. Kf5 {[%clk 0:00:42.3]} 46... Rg3 {[%clk 0:00:11.5]} 47.
Nd5+ {[%clk 0:00:41.5]} 47... Ke8 {[%clk 0:00:10.9]} 48. Nc7+ {[%clk 0:00:37]}
48... Kd8 {[%clk 0:00:09.6]} 49. Nd5 {[%clk 0:00:34.6]} 49... b5 {[%clk
0:00:08]} 50. Kf6 {[%clk 0:00:33.2]} 50... Rf3+ {[%clk 0:00:07]} 51. Kg5 {[%clk
0:00:32.8]} 51... a5 {[%clk 0:00:06]} 52. g7 {[%clk 0:00:30.5]} 52... Rg3+
{[%clk 0:00:05.9]} 53. Kf6 {[%clk 0:00:30.7]} 53... b4 {[%clk 0:00:05.5]} 54.
Kf7 {[%clk 0:00:29.4]} 54... Rf3+ {[%clk 0:00:03.2]} 55. Kg6 {[%clk 0:00:29.3]}
55... Rg3+ {[%clk 0:00:02.7]} 56. Kf7 {[%clk 0:00:29.7]} 56... Rf3+ {[%clk
0:00:02.8]} 57. Nf6 {[%clk 0:00:28.5]} 57... Rg3 {[%clk 0:00:01.7]} 58. e7+
{[%clk 0:00:28.2]} 58... Kc7 {[%clk 0:00:01.8]} 59. e8=Q {[%clk 0:00:27.8]} 1-0